[Event "90th GER-ch 2019"]
[Site "Magdeburg"]
[Date "2019.05.27"]
[Round "2.16"]
[White "Schulz, Lukas"]
[Black "Nosek, Reinhard"]
[Result "1-0"]
[ECO "B31"]
[WhiteElo "2302"]
[BlackElo "1913"]
[Annotator "NA RC"]
[PlyCount "65"]
[EventDate "2019.05.26"]
[EventType "tourn"]
[EventCountry "GER"]
[SourceTitle "playchess.com"]
[Source "ChessBase"]
[SourceQuality "1"]
[TimeControl "40/5400+30:1800+30"]

1. e4 {[%emt 0:00:00]} c5 {[%emt 0:00:00]} 2. Nf3 {[%emt 0:00:00]} Nc6 {[%emt 0:00:00]} 3. Bb5 {[%emt 0:00:04]} g6 {[%emt 0:01:03]} 4. O-O {[%emt 0:00:47]} Bg7 {[%emt 0:00:06]} 5. Re1 {[%emt 0:02:59]} e6 {[%emt 0:05:21]} 6. Bxc6 {[%emt 0:01:52]} dxc6 {[%emt 0:00:47]} 7. e5 {[%emt 0:00:49]} Ne7 {[%emt 0:01:17]} 8. d3 {[%emt 0:04:24]} h6 {[%emt 0:04:35]} 9. Nc3 {[%emt 0:01:58]} Qc7 {[%emt 0:01:26]} 10. Ne4 {[%emt 0:08:28]} b6 {[%emt 0:04:25]} 11. Nd6+ {[%emt 0:03:44]} Kf8 {[%emt 0:00:11]} 12. Bf4 {[%emt 0:00:33]} Ba6 {[%emt 0:10:04]} 13. Nd2 {[%emt 0:08:08]} g5 {[%emt 0:01:28]} 14. Bg3 {[%emt 0:05:47]} h5 {[%emt 0:06:03]} 15. N2e4 {[%emt 0:28:23]} h4 {[%emt 0:00:26]} 16. Qf3 {[%emt 0:00:15]} Nf5 {[%emt 0:03:18]} 17. Nxg5 {[%emt 0:00:10]} hxg3 {[%emt 0:00:13]} 18. hxg3 {[%emt 0:00:24]} Kg8 {[%emt 0:05:41]} 19. Ndxf7 {[%emt 0:02:58]} Qe7 {[%emt 0:05:35]} 20. Re4 {[%emt 0:09:12]} Rf8 {[%emt 0:15:51]} 21. Nxh8 {[%emt 0:02:16]} Qxg5 {[%emt 0:00:40]} 22. Rg4 {[%emt 0:02:44]} Qh6 {[%emt 0:03:42]} 23. Ng6 {[%emt 0:02:08]} Nd4 {[%emt 0:06:35]} 24. Ne7+ {[%emt 0:00:46]} Kh8 {[%emt 0:00:37]} 25. Qe4 {[%emt 0:00:23]} Rf5 {[%emt 0:01:51]} 26. c3 {[%emt 0:05:37]} Rxe5 {[%emt 0:01:29]} 27. Ng6+ {[%emt 0:00:18]} Kg8 {[%emt 0:04:39]} 28. Nxe5 {[%emt 0:00:07]} Nc2 {[%emt 0:00:09]} 29. Qxc6 {[%emt 0:01:30]} Nxa1 30. Qe8+ Kh7 {[%emt 0:03:00]} 31. Rh4 {[%emt 0:00:36]} Qxh4 32. gxh4 {[%emt 0:00:32]} Bxe5 {[%emt 0:00:09]} 33. Qh5+ {[%emt 0:00:08]} 1-0

[Event "90th GER-ch 2019"]
[Site "Magdeburg"]
[Date "2019.05.28"]
[Round "3.7"]
[White "Maetzkow, Maximilian Paul"]
[Black "Kvetny, Mark"]
[Result "0-1"]
[ECO "D02"]
[WhiteElo "2338"]
[BlackElo "2414"]
[Annotator "RC"]
[PlyCount "90"]
[EventDate "2019.05.26"]
[EventType "tourn"]
[EventCountry "GER"]
[SourceTitle "playchess.com"]
[Source "ChessBase"]
[SourceQuality "1"]
[TimeControl "40/5400+30:1800+30"]

1. d4 {[%emt 0:00:00]} d5 {[%emt 0:00:00]} 2. Nf3 {[%emt 0:01:38]} Nf6 {[%emt 0:01:34]} 3. Bf4 {[%emt 0:00:44]} c5 {[%emt 0:01:18]} 4. c3 {[%emt 0:00:32]} Nc6 {[%emt 0:01:27]} 5. e3 {[%emt 0:01:51]} Qb6 {[%emt 0:00:10]} 6. Qb3 {[%emt 0:00:35]} c4 {[%emt 0:00:14]} 7. Qc2 {[%emt 0:00:44]} Bf5 {[%emt 0:00:14]} 8. Qc1 {[%emt 0:00:04]} h6 {[%emt 0:09:09]} 9. h3 {[%emt 0:00:26]} e6 {[%emt 0:00:26]} 10. Nbd2 {[%emt 0:01:09]} Be7 {[%emt 0:03:33]} 11. Be2 {[%emt 0:00:38]} O-O {[%emt 0:01:26]} 12. O-O {[%emt 0:00:27]} Rfc8 {[%emt 0:03:52]} 13. Re1 {[%emt 0:09:41]} Qd8 {[%emt 0:06:11]} 14. Ne5 {[%emt 0:02:59]} b5 {[%emt 0:15:05]} 15. Bf3 {[%emt 0:04:15]} a5 {[%emt 0:07:40]} 16. e4 {[%emt 0:08:54]} Bh7 {[%emt 0:00:41]} 17. Bg3 {[%emt 0:29:57]} b4 {[%emt 0:08:20]} 18. exd5 {[%emt 0:01:42]} Nxe5 {[%emt 0:02:07]} 19. dxe5 {[%emt 0:09:30]} Nxd5 {[%emt 0:00:29]} 20. Ne4 {[%emt 0:00:36]} Bxe4 {[%emt 0:05:43]} 21. Bxe4 {[%emt 0:02:07]} a4 {[%emt 0:00:37]} 22. Rd1 {[%emt 0:03:39]} a3 {[%emt 0:03:18]} 23. cxb4 {[%emt 0:00:48]} Bxb4 {[%emt 0:01:13]} 24. bxa3 {[%emt 0:01:11]} Rxa3 {[%emt 0:01:02]} 25. Rb1 {[%emt 0:03:39]} Qa5 {[%emt 0:06:05]} 26. Rd4 {[%emt 0:04:59]} Nc3 {[%emt 0:03:40]} 27. Rb2 {[%emt 0:00:36]} Bc5 {[%emt 0:03:12]} 28. Bb7 {[%emt 0:01:47]} Bxd4 {[%emt 0:06:13]} 29. Bxc8 {[%emt 0:00:07]} Nxa2 {[%emt 0:01:16]} 30. Qxc4 {[%emt 0:02:43]} Bxb2 {[%emt 0:01:21]} 31. Bxe6 {[%emt 0:00:02]} Qa7 {[%emt 0:01:07]} 32. Bf5 {[%emt 0:03:45]} g6 {[%emt 0:03:16]} 33. Bxg6 {[%emt 0:00:24]} Rxg3 {[%emt 0:00:30]} 34. Bxf7+ {[%emt 0:01:12]} Qxf7 {[%emt 0:01:14]} 35. Qc8+ {[%emt 0:00:20]} Kg7 {[%emt 0:01:12]} 36. e6 Qa7 {[%emt 0:01:28]} 37. e7 {[%emt 0:02:51]} Rxg2+ {[%emt 0:00:19]} 38. Kxg2 {[%emt 0:00:05]} Qxe7 {[%emt 0:00:04]} 39. Qc4 {[%emt 0:00:55]} Qg5+ {[%emt 0:01:21]} 40. Kf3 {[%emt 0:00:04]} Qf6+ {[%emt 0:00:54]} 41. Kg2 {[%emt 0:30:01]} Nc1 {[%emt 0:01:31]} 42. h4 {[%emt 0:00:00]} Qg6+ {[%emt 0:01:11]} 43. Kh1 {[%emt 0:00:00]} Nd3 {[%emt 0:01:31]} 44. Qc7+ {[%emt 0:00:00]} Kg8 {[%emt 0:00:19]} 45. Qb8+ {[%emt 0:00:00]} Kh7 {[%emt 0:02:27]} 0-1

[Event "90th GER-ch 2019"]
[Site "Magdeburg"]
[Date "2019.05.28"]
[Round "3.8"]
[White "Gungl, Theo"]
[Black "Roseneck, Jonas"]
[Result "1/2-1/2"]
[ECO "D85"]
[WhiteElo "2331"]
[BlackElo "2403"]
[Annotator "ChessBase"]
[PlyCount "28"]
[EventDate "2019.05.26"]
[EventType "tourn"]
[EventCountry "GER"]
[SourceTitle "playchess.com"]
[Source "ChessBase"]
[SourceQuality "1"]
[TimeControl "40/5400+30:1800+30"]

1. d4 {[%emt 0:00:00]} Nf6 {[%emt 0:00:00]} 2. c4 {[%emt 0:00:00]} g6 {[%emt 0:00:00]} 3. Nc3 {[%emt 0:00:00]} d5 {[%emt 0:00:00]} 4. cxd5 {[%emt 0:11:57]} Nxd5 {[%emt 0:00:26]} 5. e4 {[%emt 0:00:04]} Nxc3 {[%emt 0:00:04]} 6. bxc3 {[%emt 0:00:02]} Bg7 {[%emt 0:01:31]} 7. Be3 {[%emt 0:04:22]} c5 {[%emt 0:02:27]} 8. Nf3 {[%emt 0:00:10]} Qa5 {[%emt 0:04:07]} 9. Nd2 {[%emt 0:02:46]} Bd7 {[%emt 0:02:55]} 10. Nb3 {[%emt 0:11:17]} Qxc3+ {[%emt 0:14:11]} 11. Bd2 {[%emt 0:00:07]} Qb2 {[%emt 0:00:26]} 12. Bc1 {[%emt 0:00:15]} Qc3+ {[%emt 0:00:12]} 13. Bd2 {[%emt 0:00:06]} Qb2 {[%emt 0:00:42]} 14. Bc1 {[%emt 0:00:05]} Qc3+ {[%emt 0:00:07]} 1/2-1/2

[Event "90th GER-ch 2019"]
[Site "Magdeburg"]
[Date "2019.05.28"]
[Round "3.9"]
[White "Paul, Johannes"]
[Black "Schulz, Lukas"]
[Result "1-0"]
[ECO "E94"]
[WhiteElo "2364"]
[BlackElo "2302"]
[Annotator "ChessBase"]
[PlyCount "71"]
[EventDate "2019.05.26"]
[EventType "tourn"]
[EventCountry "GER"]
[SourceTitle "playchess.com"]
[Source "ChessBase"]
[SourceQuality "1"]
[TimeControl "40/5400+30:1800+30"]

1. d4 {[%emt 0:00:00]} Nf6 {[%emt 0:00:00]} 2. c4 {[%emt 0:00:00]} g6 {[%emt 0:00:00]} 3. Nc3 {[%emt 0:00:00]} Bg7 {[%emt 0:00:00]} 4. e4 {[%emt 0:00:00]} d6 {[%emt 0:00:12]} 5. Nf3 {[%emt 0:00:00]} O-O {[%emt 0:00:36]} 6. Be2 {[%emt 0:00:00]} e5 {[%emt 0:01:48]} 7. O-O {[%emt 0:00:04]} exd4 {[%emt 0:04:21]} 8. Nxd4 {[%emt 0:00:08]} Re8 {[%emt 0:00:10]} 9. f3 {[%emt 0:00:48]} c6 {[%emt 0:03:43]} 10. Kh1 {[%emt 0:21:31]} d5 {[%emt 0:09:58]} 11. cxd5 {[%emt 0:03:16]} cxd5 {[%emt 0:00:07]} 12. Bg5 {[%emt 0:00:07]} dxe4 {[%emt 0:06:17]} 13. Ndb5 {[%emt 0:16:39]} Nbd7 {[%emt 0:45:25]} 14. fxe4 {[%emt 0:19:47]} Qb6 {[%emt 0:12:42]} 15. Nd6 {[%emt 0:10:14]} Re6 {[%emt 0:02:45]} 16. Nc4 {[%emt 0:03:06]} Qc5 {[%emt 0:01:03]} 17. e5 {[%emt 0:10:56]} Nxe5 {[%emt 0:00:14]} 18. Rxf6 {[%emt 0:07:25]} Nxc4 {[%emt 0:01:14]} 19. Bxc4 {[%emt 0:01:55]} Qxg5 {[%emt 0:02:24]} 20. Qd8+ {[%emt 0:01:07]} Bf8 {[%emt 0:00:16]} 21. Bxe6 {[%emt 0:00:50]} Bxe6 {[%emt 0:00:14]} 22. Rxg6+ {[%emt 0:01:03]} Qxg6 {[%emt 0:00:21]} 23. Qxa8 {[%emt 0:00:04]} Bd7 {[%emt 0:02:55]} 24. Qb8 {[%emt 0:01:30]} Bc6 {[%emt 0:02:58]} 25. Qg3 {[%emt 0:00:16]} Qxg3 {[%emt 0:00:05]} 26. hxg3 {[%emt 0:00:05]} Bd6 {[%emt 0:00:04]} 27. Kh2 {[%emt 0:00:37]} h5 {[%emt 0:00:28]} 28. Rd1 {[%emt 0:01:26]} Be5 {[%emt 0:00:08]} 29. Nd5 {[%emt 0:00:22]} Kg7 {[%emt 0:01:15]} 30. Ne7 {[%emt 0:00:18]} Be8 {[%emt 0:02:44]} 31. Rd8 {[%emt 0:00:18]} Kf8 {[%emt 0:00:20]} 32. Nf5 {[%emt 0:00:43]} Bc7 {[%emt 0:00:38]} 33. Rc8 {[%emt 0:00:26]} Be5 {[%emt 0:00:07]} 34. Kh3 {[%emt 0:01:08]} Bxb2 {[%emt 0:00:49]} 35. Nd6 {[%emt 0:00:21]} Ke7 {[%emt 0:00:03]} 36. Nxe8 1-0

[Event "90th GER-ch 2019"]
[Site "Magdeburg"]
[Date "2019.05.28"]
[Round "3.10"]
[White "Trifan, Andrei Ioan"]
[Black "Krastev, Alexander"]
[Result "1/2-1/2"]
[ECO "C95"]
[WhiteElo "2268"]
[BlackElo "2344"]
[Annotator "ChessBase"]
[PlyCount "81"]
[EventDate "2019.05.26"]
[EventType "tourn"]
[EventCountry "GER"]
[SourceTitle "playchess.com"]
[Source "ChessBase"]
[SourceQuality "1"]
[TimeControl "40/5400+30:1800+30"]

1. e4 {[%emt 0:00:00]} e5 {[%emt 0:00:00]} 2. Nf3 {[%emt 0:00:04]} Nc6 {[%emt 0:00:00]} 3. Bb5 {[%emt 0:00:25]} a6 {[%emt 0:00:00]} 4. Ba4 {[%emt 0:00:12]} Nf6 {[%emt 0:00:00]} 5. O-O {[%emt 0:00:52]} Be7 {[%emt 0:00:00]} 6. Re1 {[%emt 0:00:31]} b5 {[%emt 0:00:00]} 7. Bb3 {[%emt 0:00:05]} d6 {[%emt 0:00:05]} 8. c3 {[%emt 0:00:41]} O-O {[%emt 0:00:09]} 9. h3 {[%emt 0:00:03]} Nb8 {[%emt 0:00:04]} 10. d4 {[%emt 0:01:27]} Nbd7 {[%emt 0:00:04]} 11. Nbd2 {[%emt 0:00:42]} Bb7 {[%emt 0:00:05]} 12. Bc2 {[%emt 0:00:08]} Re8 {[%emt 0:00:04]} 13. Nf1 {[%emt 0:01:35]} Bf8 {[%emt 0:00:03]} 14. Ng3 {[%emt 0:00:13]} g6 {[%emt 0:00:04]} 15. b3 {[%emt 0:00:42]} Bg7 {[%emt 0:00:47]} 16. d5 {[%emt 0:02:25]} Qc8 {[%emt 0:03:36]} 17. Be3 {[%emt 0:04:48]} c6 {[%emt 0:02:33]} 18. c4 {[%emt 0:02:24]} Qc7 {[%emt 0:07:20]} 19. Rc1 {[%emt 0:09:03]} b4 {[%emt 0:19:46]} 20. Qd2 {[%emt 0:14:46]} c5 {[%emt 0:04:22]} 21. Bh6 {[%emt 0:08:23]} Bxh6 {[%emt 0:05:23]} 22. Qxh6 {[%emt 0:00:08]} Qd8 {[%emt 0:00:31]} 23. Nh2 {[%emt 0:11:32]} Kh8 {[%emt 0:05:51]} 24. Rf1 {[%emt 0:04:47]} a5 {[%emt 0:06:16]} 25. a4 {[%emt 0:06:37]} bxa3 {[%emt 0:10:07]} 26. Ra1 {[%emt 0:01:45]} a4 {[%emt 0:00:18]} 27. bxa4 {[%emt 0:03:02]} Nb6 {[%emt 0:01:56]} 28. Bb3 {[%emt 0:03:41]} Nxa4 {[%emt 0:08:57]} 29. Rxa3 {[%emt 0:02:12]} Ng8 {[%emt 0:03:26]} 30. Qe3 {[%emt 0:02:31]} Nb6 {[%emt 0:00:27]} 31. Raa1 {[%emt 0:02:41]} Qc7 {[%emt 0:03:30]} 32. f4 {[%emt 0:04:19]} Rxa1 {[%emt 0:07:04]} 33. Rxa1 {[%emt 0:00:02]} exf4 {[%emt 0:00:09]} 34. Qxf4 {[%emt 0:00:15]} f6 {[%emt 0:00:42]} 35. h4 {[%emt 0:03:23]} h5 {[%emt 0:01:36]} 36. Ne2 {[%emt 0:01:19]} Nd7 {[%emt 0:09:38]} 37. Nc3 {[%emt 0:03:59]} Ne5 {[%emt 0:00:06]} 38. Nf3 {[%emt 0:01:17]} Qb6 {[%emt 0:03:22]} 39. Ba4 {[%emt 0:02:16]} Re7 {[%emt 0:00:35]} 40. Rb1 {[%emt 0:02:59]} Qa5 {[%emt 0:00:31]} 41. Nxe5 {[%emt 0:09:30]} 1/2-1/2

[Event "90th GER-ch 2019"]
[Site "Magdeburg"]
[Date "2019.05.28"]
[Round "3.12"]
[White "Guenther, Andreas"]
[Black "Pajeken, Jakob Leon"]
[Result "0-1"]
[ECO "A01"]
[WhiteElo "2121"]
[BlackElo "2359"]
[Annotator "RC"]
[PlyCount "60"]
[EventDate "2019.05.26"]
[EventType "tourn"]
[EventCountry "GER"]
[SourceTitle "playchess.com"]
[Source "ChessBase"]
[SourceQuality "1"]
[TimeControl "40/5400+30:1800+30"]

1. b3 {[%emt 0:00:00]} d5 {[%emt 0:00:00]} 2. Bb2 {[%emt 0:00:00]} Nf6 {[%emt 0:00:29]} 3. e3 {[%emt 0:00:13]} e6 {[%emt 0:03:06]} 4. f4 {[%emt 0:02:09]} c5 {[%emt 0:01:25]} 5. Nf3 {[%emt 0:00:11]} Nc6 {[%emt 0:00:33]} 6. Bb5 {[%emt 0:03:26]} Bd6 {[%emt 0:01:41]} 7. O-O {[%emt 0:01:44]} O-O {[%emt 0:02:48]} 8. Bxc6 {[%emt 0:03:04]} bxc6 {[%emt 0:00:06]} 9. Ne5 {[%emt 0:02:29]} Qc7 {[%emt 0:02:29]} 10. d3 {[%emt 0:00:46]} Nd7 {[%emt 0:01:03]} 11. Nxd7 {[%emt 0:02:30]} Bxd7 {[%emt 0:00:06]} 12. Qh5 {[%emt 0:04:54]} f6 {[%emt 0:00:17]} 13. Nd2 {[%emt 0:03:59]} Rae8 {[%emt 0:02:07]} 14. Nf3 {[%emt 0:14:48]} Rf7 {[%emt 0:07:31]} 15. Kh1 {[%emt 0:07:32]} g6 {[%emt 0:02:23]} 16. Qh4 {[%emt 0:01:20]} Ref8 {[%emt 0:01:23]} 17. Rf2 {[%emt 0:06:24]} d4 {[%emt 0:07:07]} 18. exd4 {[%emt 0:04:01]} Bxf4 {[%emt 0:01:07]} 19. Nd2 {[%emt 0:07:02]} g5 {[%emt 0:04:14]} 20. Qh6 {[%emt 0:01:29]} Be3 {[%emt 0:11:00]} 21. Re2 {[%emt 0:00:07]} Bxd2 {[%emt 0:07:47]} 22. Rxd2 {[%emt 0:00:08]} Qf4 {[%emt 0:00:09]} 23. Re2 {[%emt 0:03:47]} cxd4 {[%emt 0:01:56]} 24. Re4 {[%emt 0:05:33]} Qf2 {[%emt 0:00:45]} 25. Bxd4 {[%emt 0:02:12]} Qxc2 {[%emt 0:00:14]} 26. Bxa7 {[%emt 0:00:57]} c5 {[%emt 0:01:43]} 27. Rae1 {[%emt 0:03:40]} Bc6 {[%emt 0:00:32]} 28. R4e2 {[%emt 0:00:11]} Qc3 {[%emt 0:00:54]} 29. Qh3 {[%emt 0:01:06]} Bd5 {[%emt 0:00:40]} 30. Bb6 {[%emt 0:01:21]} Rb8 {[%emt 0:01:33]} 0-1

[Event "90th GER-ch 2019"]
[Site "Magdeburg"]
[Date "2019.05.28"]
[Round "3.13"]
[White "Schulz, Karsten"]
[Black "Wachinger, Nikolas"]
[Result "1/2-1/2"]
[ECO "A05"]
[WhiteElo "2227"]
[BlackElo "2311"]
[Annotator "ChessBase"]
[PlyCount "152"]
[EventDate "2019.05.26"]
[EventType "tourn"]
[EventCountry "GER"]
[SourceTitle "playchess.com"]
[Source "ChessBase"]
[SourceQuality "1"]
[TimeControl "40/5400+30:1800+30"]

1. Nf3 {[%emt 0:00:00]} Nf6 {[%emt 0:18:56]} 2. g3 {[%emt 0:01:20]} g6 {[%emt 0:00:14]} 3. b3 {[%emt 0:00:06]} Bg7 {[%emt 0:00:53]} 4. Bb2 {[%emt 0:00:06]} O-O {[%emt 0:01:50]} 5. Bg2 {[%emt 0:02:26]} d6 {[%emt 0:01:18]} 6. d4 {[%emt 0:00:07]} e5 {[%emt 0:04:13]} 7. dxe5 {[%emt 0:02:41]} Ng4 {[%emt 0:03:42]} 8. O-O {[%emt 0:00:21]} Nxe5 {[%emt 0:03:06]} 9. Nxe5 {[%emt 0:01:15]} dxe5 {[%emt 0:04:57]} 10. Qxd8 {[%emt 0:02:51]} Rxd8 {[%emt 0:00:22]} 11. Na3 {[%emt 0:00:30]} f6 {[%emt 0:21:37]} 12. Rad1 {[%emt 0:03:49]} Re8 {[%emt 0:00:27]} 13. Rd2 {[%emt 0:14:56]} Bf8 {[%emt 0:03:33]} 14. Rfd1 {[%emt 0:06:13]} Be7 {[%emt 0:02:00]} 15. Nb5 {[%emt 0:09:05]} Na6 {[%emt 0:01:02]} 16. a3 {[%emt 0:01:29]} Kf8 {[%emt 0:08:52]} 17. b4 {[%emt 0:02:35]} f5 {[%emt 0:07:57]} 18. e4 {[%emt 0:07:40]} Bg5 {[%emt 0:02:11]} 19. Rd3 {[%emt 0:03:42]} f4 {[%emt 0:00:27]} 20. gxf4 {[%emt 0:03:25]} Bxf4 {[%emt 0:01:03]} 21. Bh3 {[%emt 0:00:23]} Bxh3 {[%emt 0:02:07]} 22. Rxh3 {[%emt 0:04:56]} Re7 {[%emt 0:03:04]} 23. Rhd3 {[%emt 0:01:40]} Ke8 {[%emt 0:00:34]} 24. Nc3 {[%emt 0:02:26]} c6 {[%emt 0:00:41]} 25. Ne2 {[%emt 0:03:53]} Bg5 {[%emt 0:01:04]} 26. Kg2 {[%emt 0:05:46]} Nc7 {[%emt 0:00:31]} 27. Kg3 {[%emt 0:01:55]} Bf6 {[%emt 0:01:52]} 28. Bc1 {[%emt 0:01:24]} Ne6 {[%emt 0:00:40]} 29. Be3 {[%emt 0:00:40]} a5 {[%emt 0:01:10]} 30. b5 {[%emt 0:07:41]} Rc8 {[%emt 0:00:47]} 31. c4 {[%emt 0:01:28]} cxb5 {[%emt 0:02:02]} 32. cxb5 {[%emt 0:00:19]} Rc2 {[%emt 0:00:02]} 33. Nc3 {[%emt 0:02:32]} Nf4 {[%emt 0:00:34]} 34. Rd8+ {[%emt 0:00:23]} Kf7 {[%emt 0:00:01]} 35. Nd5 {[%emt 0:00:23]} Nxd5 {[%emt 0:00:31]} 36. R1xd5 {[%emt 0:02:43]} Rc3 {[%emt 0:01:03]} 37. Kg2 {[%emt 0:02:00]} Rec7 {[%emt 0:00:36]} 38. R8d7+ {[%emt 0:00:36]} Ke8 {[%emt 0:00:01]} 39. Rxc7 {[%emt 0:02:04]} Rxc7 {[%emt 0:00:02]} 40. Bb6 {[%emt 0:00:49]} Rc4 {[%emt 0:01:41]} 41. Bxa5 {[%emt 0:01:41]} Rxe4 {[%emt 0:01:35]} 42. Bc3 {[%emt 0:03:09]} Be7 {[%emt 0:04:17]} 43. Bxe5 {[%emt 0:04:23]} Bxa3 {[%emt 0:00:11]} 44. Bg3 {[%emt 0:02:23]} Be7 {[%emt 0:01:17]} 45. f4 {[%emt 0:02:10]} h5 {[%emt 0:01:18]} 46. Kf3 {[%emt 0:01:17]} Rb4 {[%emt 0:00:20]} 47. Bf2 {[%emt 0:02:18]} Rb3+ {[%emt 0:02:26]} 48. Ke4 {[%emt 0:01:32]} Rb2 {[%emt 0:00:37]} 49. Kf3 {[%emt 0:00:15]} Bf6 {[%emt 0:01:09]} 50. h3 {[%emt 0:00:54]} Rb3+ {[%emt 0:01:01]} 51. Be3 {[%emt 0:02:02]} Ke7 {[%emt 0:01:13]} 52. b6 {[%emt 0:02:37]} Ke6 {[%emt 0:05:37]} 53. Rd1 {[%emt 0:00:16]} Be7 {[%emt 0:01:26]} 54. Ke4 {[%emt 0:01:50]} Bf6 {[%emt 0:01:29]} 55. Kf3 {[%emt 0:01:04]} Rb5 {[%emt 0:02:46]} 56. Ke4 {[%emt 0:00:59]} Rb4+ {[%emt 0:03:40]} 57. Kf3 {[%emt 0:00:12]} Rb3 {[%emt 0:03:52]} 58. Ke4 {[%emt 0:01:24]} Be7 {[%emt 0:00:08]} 59. Rd2 {[%emt 0:01:18]} h4 {[%emt 0:03:32]} 60. Rd1 {[%emt 0:02:32]} Rb2 {[%emt 0:00:43]} 61. Rd3 {[%emt 0:03:21]} Bb4 {[%emt 0:01:08]} 62. Rd1 {[%emt 0:01:25]} Ba5 {[%emt 0:01:29]} 63. Rg1 {[%emt 0:00:59]} Kf7 {[%emt 0:00:21]} 64. Rd1 {[%emt 0:00:23]} Rb4+ {[%emt 0:00:38]} 65. Kf3 {[%emt 0:00:52]} Rb3 {[%emt 0:00:46]} 66. Ke4 {[%emt 0:01:37]} Bxb6 {[%emt 0:00:13]} 67. Bxb6 {[%emt 0:00:12]} Rxb6 {[%emt 0:00:02]} 68. Kf3 {[%emt 0:00:14]} Rb4 {[%emt 0:01:22]} 69. Kg4 {[%emt 0:00:14]} b5 {[%emt 0:00:16]} 70. Rd7+ {[%emt 0:01:07]} Ke6 {[%emt 0:00:18]} 71. Rg7 {[%emt 0:00:36]} Kf6 {[%emt 0:00:22]} 72. Rb7 {[%emt 0:00:05]} Rb1 {[%emt 0:00:34]} 73. Rb6+ {[%emt 0:00:22]} Kg7 {[%emt 0:00:03]} 74. Kxh4 {[%emt 0:00:46]} b4 {[%emt 0:00:58]} 75. Kg5 {[%emt 0:00:49]} Rg1+ {[%emt 0:00:59]} 76. Kh4 {[%emt 0:00:03]} Rb1 {[%emt 0:00:11]} 1/2-1/2

[Event "90th GER-ch 2019"]
[Site "Magdeburg"]
[Date "2019.05.28"]
[Round "3.14"]
[White "Dauth, Benjamin"]
[Black "Adiyaman, Rene"]
[Result "1/2-1/2"]
[ECO "C65"]
[WhiteElo "2295"]
[BlackElo "2175"]
[Annotator "ChessBase"]
[PlyCount "101"]
[EventDate "2019.05.26"]
[EventType "tourn"]
[EventCountry "GER"]
[SourceTitle "playchess.com"]
[Source "ChessBase"]
[SourceQuality "1"]
[TimeControl "40/5400+30:1800+30"]

1. e4 e5 2. Nf3 Nc6 3. Bb5 Nf6 4. d3 Bc5 5. Bxc6 dxc6 6. Be3 Bd6 7. Nbd2 Qe7 8. h3 Be6 9. Qe2 a6 10. d4 exd4 11. Bg5 Bb4 12. e5 Bxd2+ 13. Bxd2 Nd7 14. Nxd4 O-O-O 15. O-O Rhe8 16. Rfe1 Bxh3 17. Nxc6 bxc6 18. Qxa6+ Kb8 19. Be3 c5 20. b4 Bxg2 21. Kxg2 Qe6 22. Qxe6 Rxe6 23. bxc5 Nxe5 24. Rad1 Rg6+ 25. Kf1 Rxd1 26. Rxd1 Kb7 27. Rd8 Re6 28. Rg8 g6 29. a4 h5 30. c3 Nc4 31. Bd4 Nb2 32. Rg7 f5 33. Kg2 Nxa4 34. Kg3 Kc6 35. f3 Nxc5 36. Kf4 Nd3+ 37. Kg5 Ne1 38. Bf6 Nxf3+ 39. Kxg6 f4 40. Kf5 Rxf6+ 41. Kxf6 Nd2 42. Rg2 Ne4+ 43. Ke5 f3 44. Rg6+ Nd6 45. Rf6 Kc5 46. Rxf3 Nb5 47. Rh3 Kc4 48. Rh4+ Kc5 49. Ke6 Nxc3 50. Rxh5+ Kb4 51. Kd7 1/2-1/2

[Event "90th GER-ch 2019"]
[Site "Magdeburg"]
[Date "2019.05.28"]
[Round "3.15"]
[White "Bastian, Herbert"]
[Black "Heimrath, Reiner"]
[Result "1-0"]
[ECO "B26"]
[WhiteElo "2297"]
[BlackElo "2239"]
[Annotator "ChessBase"]
[PlyCount "58"]
[EventDate "2019.05.26"]
[EventType "tourn"]
[EventCountry "GER"]
[SourceTitle "playchess.com"]
[Source "ChessBase"]
[SourceQuality "1"]
[TimeControl "40/5400+30:1800+30"]

1. e4 {[%emt 0:00:00]} c5 {[%emt 0:00:00]} 2. Nc3 {[%emt 0:00:32]} Nc6 {[%emt 0:00:00]} 3. g3 {[%emt 0:00:22]} g6 {[%emt 0:00:16]} 4. Bg2 {[%emt 0:00:07]} Bg7 {[%emt 0:00:06]} 5. d3 {[%emt 0:00:05]} d6 {[%emt 0:00:43]} 6. Be3 {[%emt 0:02:58]} Rb8 {[%emt 0:01:00]} 7. Qd2 {[%emt 0:17:54]} b5 {[%emt 0:04:27]} 8. Nd1 {[%emt 0:00:41]} e5 {[%emt 0:05:43]} 9. c3 {[%emt 0:03:22]} b4 {[%emt 0:06:40]} 10. Ne2 {[%emt 0:02:53]} Nge7 {[%emt 0:06:00]} 11. O-O {[%emt 0:07:13]} bxc3 {[%emt 0:01:12]} 12. bxc3 {[%emt 0:00:27]} O-O {[%emt 0:00:06]} 13. Bh6 {[%emt 0:01:02]} Qa5 {[%emt 0:10:18]} 14. Bxg7 {[%emt 0:01:56]} Kxg7 {[%emt 0:00:03]} 15. Ne3 {[%emt 0:00:32]} Be6 {[%emt 0:16:16]} 16. f4 {[%emt 0:07:13]} f6 {[%emt 0:03:19]} 17. f5 {[%emt 0:02:09]} Bg8 {[%emt 0:01:20]} 18. fxg6 {[%emt 0:04:25]} hxg6 {[%emt 0:00:37]} 19. Ng4 {[%emt 0:10:49]} g5 {[%emt 0:00:07]} 20. h4 {[%emt 0:01:41]} Be6 {[%emt 0:00:06]} 21. Bh3 {[%emt 0:03:09]} Bxg4 {[%emt 0:10:04]} 22. Bxg4 {[%emt 0:00:14]} Kg6 {[%emt 0:22:03]} 23. Rf2 {[%emt 0:04:40]} Nd4 {[%emt 0:01:17]} 24. Raf1 {[%emt 0:04:51]} Nxe2+ {[%emt 0:00:26]} 25. Bxe2 {[%emt 0:00:17]} gxh4 {[%emt 0:01:18]} 26. gxh4 {[%emt 0:00:13]} Ng8 {[%emt 0:03:41]} 27. Rg2+ {[%emt 0:09:29]} Kh7 {[%emt 0:01:33]} 28. Rf5 {[%emt 0:00:40]} Rb1+ {[%emt 0:01:18]} 29. Rf1 Rbb8 1-0